lending/lending_fUSD_20251106
["ID","MTS","AMOUNT","RATE_DAILY","PERIOD"]
[393303346,1762441837612,-339.41579165,0.00017522,2]
[393303355,1762441839921,-512.5,0.00017522,2]
[393303360,1762441842580,-894.71459963,0.00017522,2]
[393303361,1762441842600,-645.54391283,0.00017522,2]
[393303369,1762441845679,-423.05586905,0.00017522,2]
[393303370,1762441845691,-283.27499976,0.00017522,2]
[393303371,1762441845867,-1907.23273993,0.00017522,2]
[393303372,1762441845880,-2221.39540228,0.00017522,2]
[393303373,1762441845892,-8405.06812776,0.00017522,2]
[393303377,1762441846263,-2595.33058157,0.00017522,2]
[393303379,1762441906639,500.0,0.00038621,30]
[393303380,1762441986392,150.0,0.0001679,120]
[393303406,1762442178027,150.0,0.00038621,30]
[393303407,1762442190312,6098.0,0.00038621,30]
[393303481,1762442565670,500.0,0.00038631,120]
[393303482,1762442566078,500.0,0.00038631,120]
[393303483,1762442566592,500.0,0.00038631,120]
[393303484,1762442566968,500.0,0.00038631,120]
[393303485,1762442567345,500.0,0.00038631,120]
[393303486,1762442567725,500.0,0.00038631,120]
[393303487,1762442568104,500.0,0.00038631,120]
[393303488,1762442568482,500.0,0.00038631,120]
[393303489,1762442568910,585.20289163,0.00038631,120]
[393303495,1762442766553,-470.78,0.00024858,120]
[393303496,1762442766635,-174.0,0.00027666,120]
[393303501,1762442880414,-343.99274121,0.00015,2]
[393303503,1762442882478,300.0,0.00014999,2]
[393303504,1762442883198,-210.61956548,0.00015,2]
[393303505,1762442885448,-166.66,0.00015,2]
[393303506,1762442889814,-280.20396988,0.00015,2]
[393303507,1762442892036,-441.90929933,0.00015,2]
[393303508,1762442894348,-307.1669507,0.00015,2]
[393303509,1762442911049,-172.7793,0.00015,2]
[393303510,1762442913042,-343.69499417,0.00015,2]
[393303511,1762442913215,347.06368571,0.00014999,2]
[393303512,1762442913258,179.65242189,0.00014999,2]
[393303513,1762442913313,200.40435121,0.00014999,2]
[393303514,1762442915393,-151.0,0.00015,2]
[393303515,1762442917625,-166.66,0.00015,2]
[393303516,1762442919805,-194.99544923,0.00015,2]
[393303517,1762442922369,-160.99919687,0.00015,2]
[393303518,1762442925552,-205.33489505,0.00015,2]
[393303519,1762442929742,-200.91891303,0.00015,2]
[393303520,1762442931270,-161.55758847,0.00015,2]
[393303521,1762442932953,-425.16471001,0.00015,2]
[393303522,1762442934934,-435.45163064,0.00015,2]
[393303523,1762442937949,-339.88676447,0.00015,2]
[393303524,1762442939879,-246.1582886,0.00015,2]
[393303525,1762442941619,-261.01570103,0.00015,2]
[393303526,1762442941701,300.0,0.00014999,2]
[393303527,1762442943176,-255.18318162,0.00015,2]
[393303528,1762442945593,-207.29988953,0.00015,2]
[393303529,1762442948988,-166.66,0.00015,2]
[393303530,1762442951719,-254.48211157,0.00015,2]
[393303531,1762442954053,-193.32633915,0.00015,2]
[393303536,1762442971216,-199.40832095,0.00015,2]
[393303537,1762442976136,-165.17624386,0.00015,2]
[393303538,1762442978983,-208.38015668,0.00015,2]
[393303539,1762442982076,-747.08911279,0.00015,2]
[393303540,1762443000416,-216.03,0.00015,2]
[393303541,1762443001886,300.0,0.00014999,2]
[393303542,1762443002284,150.0,0.00014999,2]
[393303543,1762443002594,-166.66,0.00015,2]
[393303544,1762443006429,1200.0,0.00014999,2]
[393303545,1762443006494,-379.07079502,0.00015,2]
[393303546,1762443007981,-486.49205072,0.00015,2]
[393303547,1762443009704,-223.40392777,0.00015,2]
[393303548,1762443011744,-426.22899421,0.00015,2]
[393303549,1762443020147,183.42854,0.00030136,120]
[393303550,1762443030392,-195.0,0.00015,2]
[393303562,1762443031703,-2956.0,0.00015,2]
[393303563,1762443031714,-257.87596969,0.00015,2]
[393303564,1762443031804,-776.15703811,0.00015,2]
[393303565,1762443031815,-1008.51,0.00015,2]
[393303566,1762443031910,-3676.44407226,0.00015,2]
[393303585,1762443032181,-300.76586344,0.00015,2]
[393303693,1762443033638,-166.66,0.00015,2]
[393303694,1762443036972,-166.66,0.00015,2]
[393303695,1762443037682,-1928.80999808,0.00015,2]
[393303696,1762443037712,-2432.9842022,0.00015,2]
[393303705,1762443040158,-1.7e-07,0.00015,2]
[393303706,1762443040170,-58414.12918482,0.00015,2]
[393303707,1762443040180,-20000.02,0.00015,3]
[393303708,1762443040192,-255.0,0.00016124,2]
[393303709,1762443040201,-500.0,0.00016211,2]
[393303710,1762443040210,-151.0,0.00016454,2]
[393303712,1762443040220,-151.0,0.00016454,2]
[393303714,1762443040229,-151.0,0.00016454,2]
[393303716,1762443040239,-151.0,0.00016454,2]
[393303717,1762443040248,-151.0,0.00016454,2]
[393303718,1762443040258,-151.0,0.00016454,2]
[393303719,1762443040267,-151.0,0.00016454,2]
[393303720,1762443040278,-151.0,0.00016454,2]
[393303721,1762443040292,-151.0,0.00016454,2]
[393303722,1762443040301,-151.0,0.00016454,2]
[393303723,1762443040311,-151.0,0.00016454,2]
[393303724,1762443040322,-151.0,0.00016454,2]
[393303725,1762443040331,-151.0,0.00016454,2]
[393303726,1762443040341,-151.0,0.00016454,2]
[393303727,1762443040351,-151.0,0.00016454,2]
[393303728,1762443040361,-151.0,0.00016454,2]
[393303729,1762443040371,-151.0,0.00016454,2]
[393303730,1762443040381,-151.0,0.00016454,2]
[393303731,1762443040390,-151.0,0.00016454,2]
[393303732,1762443040399,-151.0,0.00016454,2]
[393303733,1762443040409,-151.0,0.00016461,2]
[393303734,1762443040418,-36507.46,0.00016463,2]
[393303735,1762443040427,-292.90161822,0.00016499,2]
[393303736,1762443040439,-1680.0,0.00016499,2]
[393303737,1762443040450,-250.0,0.000165,2]
[393303738,1762443040459,-300.0,0.000165,2]
[393303739,1762443040469,-500.0,0.000165,2]
[393303740,1762443040480,-500.0,0.000165,2]
[393303741,1762443040490,-500.0,0.000165,2]
[393303742,1762443040500,-500.0,0.000165,2]
[393303743,1762443040510,-500.0,0.000165,2]
[393303744,1762443040519,-500.0,0.000165,2]
[393303745,1762443040529,-500.0,0.000165,2]
[393303746,1762443040539,-3926.83,0.00016506,2]
[393303747,1762443040548,-691.72,0.00016574,2]
[393303748,1762443040558,-1470.93,0.00016608,2]
[393303749,1762443040568,-200.0,0.00016639,2]
[393303750,1762443040577,-150.0,0.0001679,2]
[393303751,1762443040587,-29170.32,0.00016816,2]
[393303752,1762443040597,-279.7504,0.00016822,2]
[393303753,1762443040606,-150.0,0.00016867,2]
[393303754,1762443040615,-150.99,0.00016922,2]
[393303755,1762443040625,-9196.11,0.00016922,5]
[393303756,1762443040635,-9999.99,0.00016922,2]
[393303757,1762443040645,-169.04,0.00017,2]
[393303758,1762443040655,-250.0,0.00017,2]
[393303759,1762443040665,-2000.0,0.00017,2]
[393303760,1762443040674,-1000.0,0.00017048,2]
[393303761,1762443040687,-1000.0,0.00017048,2]
[393303762,1762443040697,-525.42297104,0.00017048,2]
[393303763,1762443040707,-503.46009537,0.00017048,2]
[393303764,1762443040717,-1000.0,0.00017048,2]
[393303765,1762443040726,-1000.0,0.00017048,2]
[393303766,1762443040736,-1000.0,0.00017048,2]
[393303767,1762443040746,-893.73840764,0.00017135,2]
[393303768,1762443040756,-221.80400124,0.00017158,2]
[393303769,1762443040765,-289.41,0.00017162,2]
[393303770,1762443040775,-166.68,0.00017309,2]
[393303771,1762443040784,-151.0,0.00017319,2]
[393303772,1762443040794,-262.99860917,0.00017322,2]
[393303773,1762443040803,-226.7870567,0.00017322,2]
[393303774,1762443040813,-8832.36064574,0.00017322,2]
[393303775,1762443040822,-1000.0,0.00017322,2]
[393303776,1762443040831,-2500.0,0.00017322,2]
[393303777,1762443040841,-5000.0,0.00017322,2]
[393303778,1762443040851,-433.0,0.00017339,2]
[393303779,1762443040861,-500.0,0.00017342,2]
[393303780,1762443040870,-5326.65829,0.0001735,2]
[393303781,1762443040880,-226.78705661,0.00017386,2]
[393303782,1762443040889,-8832.36064571,0.00017386,2]
[393303783,1762443040898,-363.9,0.000174,2]
[393303784,1762443040908,-169.04,0.000174,2]
[393303785,1762443040917,-338.08,0.000174,2]
[393303786,1762443040926,-169.04,0.000174,2]
[393303787,1762443040938,-338.08,0.000174,2]
[393303788,1762443040948,-262.99860912,0.00017405,2]
[393303789,1762443040957,-376.36,0.00017412,3]
[393303790,1762443040967,-150.0,0.00017412,2]
[393303791,1762443040977,-150.0,0.00017412,2]
[393303792,1762443040986,-500.0,0.00017412,2]
[393303793,1762443040996,-500.0,0.00017412,2]
[393303794,1762443041005,-684.0,0.00017412,2]
[393303795,1762443041016,-500.0,0.00017412,2]
[393303796,1762443041026,-150.0,0.00017412,2]
[393303797,1762443041036,-421.0,0.00017412,2]
[393303798,1762443041046,-500.0,0.00017412,2]
[393303799,1762443041055,-500.0,0.00017412,2]
[393303800,1762443041064,-150.0,0.00017412,2]
[393303801,1762443041074,-150.0,0.00017412,2]
[393303802,1762443041084,-162.44257324,0.00017412,2]
[393303803,1762443041093,-500.0,0.00017412,2]
[393303804,1762443041102,-150.0,0.00017412,2]
[393303805,1762443041111,-150.0,0.00017412,2]
[393303806,1762443041120,-500.0,0.00017412,2]
[393303807,1762443041131,-150.0,0.00017412,2]
[393303808,1762443041140,-500.0,0.00017412,2]
[393303809,1762443041150,-150.0,0.00017412,2]
[393303810,1762443041159,-500.0,0.00017412,2]
[393303811,1762443041169,-500.0,0.00017412,2]
[393303812,1762443041178,-151.0,0.00017418,2]
[393303813,1762443041190,-151.0,0.00017419,2]
[393303814,1762443041199,-108784.41675423,0.00017421,2]
[393303815,1762443041209,-500.0,0.00017421,2]
[393303816,1762443041218,-500.0,0.00017421,2]
[393303817,1762443041228,-151.0,0.00017421,2]
[393303818,1762443041238,-151.0,0.00017421,2]
[393303819,1762443041248,-151.0,0.00017421,2]
[393303820,1762443041257,-151.0,0.00017421,2]
[393303821,1762443041268,-151.523274,0.00017421,2]
[393303822,1762443041278,-151.0,0.00017421,2]
[393303823,1762443041291,-151.216925,0.00017421,2]
[393303824,1762443041300,-151.0,0.00017421,2]
[393303825,1762443041310,-151.0,0.00017421,2]
[393303826,1762443041320,-151.0,0.00017421,2]
[393303827,1762443041330,-177.091548,0.00017421,2]
[393303828,1762443041340,-151.0,0.00017421,2]
[393303829,1762443041351,-177.091548,0.00017421,2]
[393303830,1762443041362,-151.0,0.00017421,2]
[393303831,1762443041375,-177.091548,0.00017421,2]
[393303832,1762443041386,-162.943021,0.00017421,2]
[393303833,1762443041396,-177.091548,0.00017421,2]
[393303834,1762443041406,-151.0,0.00017421,2]
[393303835,1762443041416,-151.0,0.00017421,2]
[393303836,1762443041426,-151.0,0.00017421,2]
[393303837,1762443041438,-151.0,0.00017421,2]
[393303838,1762443041448,-151.0,0.00017421,2]
[393303839,1762443041458,-151.0,0.00017421,2]
[393303840,1762443041468,-151.0,0.00017421,2]
[393303841,1762443041478,-151.0,0.00017421,2]
[393303842,1762443041488,-151.0,0.00017421,2]
[393303843,1762443041498,-151.0,0.00017421,2]
[393303844,1762443041507,-151.0,0.00017421,2]
[393303845,1762443041517,-153.892551,0.00017421,2]
[393303846,1762443041527,-151.0,0.00017421,2]
[393303847,1762443041536,-151.0,0.00017421,2]
[393303848,1762443041546,-151.0,0.00017421,2]
[393303849,1762443041556,-151.0,0.00017421,2]
[393303850,1762443041565,-252.941812,0.00017421,2]
[393303851,1762443041575,-607.620306,0.00017421,2]
[393303852,1762443041585,-607.620306,0.00017421,2]
[393303853,1762443041595,-151.0,0.00017421,2]
[393303854,1762443041604,-1378.608744,0.00017421,2]
[393303855,1762443041614,-607.620306,0.00017421,2]
[393303856,1762443041624,-1378.608744,0.00017421,2]
[393303857,1762443041634,-607.620306,0.00017421,2]
[393303858,1762443041643,-151.0,0.00017421,2]
[393303859,1762443041652,-154.022984,0.00017421,2]
[393303860,1762443041662,-151.0,0.00017421,2]
[393303861,1762443041672,-152.819662,0.00017421,2]
[393303862,1762443041681,-151.0,0.00017421,2]
[393303863,1762443041697,-1378.608744,0.00017421,2]
[393303864,1762443041706,-160.400673,0.00017421,2]
[393303865,1762443041716,-154.031683,0.00017421,2]
[393303866,1762443041725,-1378.608744,0.00017421,2]
[393303867,1762443041734,-151.0,0.00017422,2]
[393303868,1762443041743,-151.0,0.00017422,2]
[393303869,1762443041753,-151.0,0.00017422,2]
[393303870,1762443041762,-151.0,0.00017422,2]
[393303871,1762443041771,-1008.276394,0.00017422,2]
[393303872,1762443041780,-781.239885,0.00017422,2]
[393303873,1762443041790,-1008.276394,0.00017422,2]
[393303874,1762443041799,-781.239885,0.00017422,2]
[393303875,1762443041808,-1008.276394,0.00017422,2]
[393303876,1762443041818,-781.239885,0.00017422,2]
[393303877,1762443041827,-151.0,0.00017422,2]
[393303878,1762443041836,-781.239885,0.00017422,2]
[393303879,1762443041846,-1008.276394,0.00017422,2]
[393303880,1762443041855,-151.0,0.00017422,2]
[393303881,1762443041864,-151.0,0.00017422,2]
[393303882,1762443041873,-151.0,0.00017422,2]
[393303883,1762443041883,-151.0,0.00017422,2]
[393303884,1762443041892,-151.0,0.00017422,2]
[393303885,1762443041901,-151.0,0.00017422,2]
[393303886,1762443041911,-201.305194,0.00017422,2]
[393303887,1762443041920,-151.0,0.00017422,2]
[393303888,1762443041930,-246.592492,0.00017422,2]
[393303889,1762443041942,-390.009575,0.00017422,2]
[393303890,1762443041951,-161.356972,0.00017422,2]
[393303891,1762443041961,-151.0,0.00017422,2]
[393303892,1762443041970,-151.0,0.00017422,2]
[393303893,1762443041979,-390.009575,0.00017422,2]
[393303894,1762443041989,-390.009575,0.00017422,2]
[393303895,1762443041999,-390.009575,0.00017422,2]
[393303896,1762443042008,-151.0,0.00017422,2]
[393303897,1762443042018,-151.0,0.00017422,2]
[393303898,1762443042027,-151.0,0.00017422,2]
[393303899,1762443042037,-159.180092,0.00017422,2]
[393303900,1762443042046,-159.180092,0.00017422,2]
[393303901,1762443042055,-151.0,0.00017422,2]
[393303902,1762443042065,-159.180092,0.00017422,2]
[393303903,1762443042075,-151.0,0.00017422,2]
[393303904,1762443042084,-159.180092,0.00017422,2]
[393303905,1762443042093,-151.0,0.00017422,2]
[393303906,1762443042103,-151.0,0.00017422,2]
[393303907,1762443042112,-151.0,0.00017422,2]
[393303908,1762443042122,-151.0,0.00017422,2]
[393303909,1762443042131,-151.0,0.00017422,2]
[393303910,1762443042142,-151.0,0.00017422,2]
[393303911,1762443042152,-151.0,0.00017422,2]
[393303912,1762443042161,-151.0,0.00017422,2]
[393303913,1762443042171,-151.0,0.00017422,2]
[393303914,1762443042180,-151.0,0.00017422,2]
[393303915,1762443042199,-151.0,0.00017422,2]
[393303916,1762443042212,-177.091548,0.00017422,2]
[393303917,1762443042222,-177.091548,0.00017422,2]
[393303918,1762443042232,-151.0,0.00017422,2]
[393303919,1762443042242,-177.091548,0.00017422,2]
[393303920,1762443042252,-177.091548,0.00017422,2]
[393303921,1762443042262,-151.0,0.00017422,2]
[393303922,1762443042272,-151.0,0.00017422,2]
[393303923,1762443042284,-151.0,0.00017422,2]
[393303924,1762443042294,-153.994783,0.00017422,2]
[393303925,1762443042303,-151.0,0.00017422,2]
[393303926,1762443042314,-151.0,0.00017422,2]
[393303927,1762443042325,-151.0,0.00017422,2]
[393303928,1762443042335,-151.0,0.00017422,2]
[393303929,1762443042345,-151.0,0.00017422,2]
[393303930,1762443042355,-151.0,0.00017422,2]
[393303931,1762443042365,-151.0,0.00017422,2]
[393303932,1762443042375,-197.161209,0.00017422,2]
[393303933,1762443042384,-151.0,0.00017422,2]
[393303934,1762443042394,-151.0,0.00017422,2]
[393303935,1762443042404,-607.620306,0.00017422,2]
[393303936,1762443042414,-607.620306,0.00017422,2]
[393303937,1762443042424,-151.0,0.00017422,2]
[393303938,1762443042434,-1378.608744,0.00017422,2]
[393303939,1762443042444,-607.620306,0.00017422,2]
[393303940,1762443042454,-1378.608744,0.00017422,2]
[393303941,1762443042467,-151.0,0.00017422,2]
[393303942,1762443042477,-607.620306,0.00017422,2]
[393303943,1762443042487,-151.0,0.00017422,2]
[393303944,1762443042496,-151.0,0.00017422,2]
[393303945,1762443042506,-1378.608744,0.00017422,2]
[393303946,1762443042515,-1378.608744,0.00017422,2]
[393303948,1762443042525,-29134.8197,0.00017422,2]
[393303950,1762443042535,-420000.0,0.00017422,2]
[393303952,1762443042545,-1000.0,0.00017422,2]
[393303954,1762443042554,-226.78705661,0.0001745,2]
[393303956,1762443042564,-8832.36064571,0.0001745,2]
[393303957,1762443042577,-477.87911524,0.00017469,2]
[393303958,1762443042587,-5888.0,0.00017483,2]
[393303959,1762443042597,-262.99860912,0.00017487,2]
[393303960,1762443042607,-409.83724695,0.0001749,2]
[393303961,1762443042618,-154.77872973,0.00017497,2]
[393303962,1762443042628,-169.04,0.000175,2]
[393303963,1762443042637,-500.0,0.000175,2]
[393303964,1762443042647,-500.0,0.000175,2]
[393303965,1762443042657,-20000.0,0.000175,2]
[393303966,1762443042667,-150.0,0.000175,2]
[393303967,1762443042677,-150.0,0.000175,2]
[393303968,1762443042689,-150.0,0.000175,2]
[393303969,1762443042699,-500.0,0.000175,2]
[393303970,1762443042708,-500.0,0.000175,2]
[393303971,1762443042718,-500.0,0.000175,2]
[393303972,1762443042728,-500.0,0.000175,2]
[393303973,1762443042738,-500.0,0.000175,2]
[393303974,1762443042747,-500.0,0.000175,2]
[393303975,1762443042756,-500.0,0.000175,2]
[393303976,1762443042766,-202.3599179,0.000175,2]
[393303977,1762443042779,-150.0,0.000175,2]
[393303978,1762443042788,-500.0,0.000175,2]
[393303979,1762443042798,-300.0,0.000175,2]
[393303980,1762443042807,-34508.0,0.000175,2]
[393303981,1762443042818,-1161.08543762,0.00017511,2]
[393303982,1762443042828,-150.0,0.00017512,2]
[393303983,1762443042839,-500.0,0.00017512,2]
[393303984,1762443042849,-500.0,0.00017512,2]
[393303985,1762443042858,-159.31299469,0.00017512,2]
[393303986,1762443042868,-226.78705661,0.00017515,2]
[393303987,1762443042878,-8832.36064571,0.00017515,2]
[393303988,1762443042887,-212.916,0.0001752,2]
[393303989,1762443042896,-151.0,0.0001752,2]
[393303990,1762443042906,-151.0,0.0001752,2]
[393303991,1762443042916,-151.0,0.0001752,2]
[393303992,1762443042926,-151.0,0.0001752,2]
[393303993,1762443042937,-152.087495,0.0001752,2]
[393303994,1762443042947,-175.385303,0.0001752,2]
[393303995,1762443042956,-151.0,0.0001752,2]
[393303996,1762443042966,-155.993557,0.0001752,2]
[393303997,1762443042978,-151.0,0.0001752,2]
[393303998,1762443042988,-151.0,0.0001752,2]
[393303999,1762443042997,-151.0,0.0001752,2]
[393304000,1762443043006,-151.0,0.0001752,2]
[393304001,1762443043016,-151.0,0.0001752,2]
[393304002,1762443043026,-151.0,0.0001752,2]
[393304003,1762443043035,-151.0,0.0001752,2]
[393304004,1762443043045,-151.0,0.0001752,2]
[393304005,1762443043055,-161.55162,0.0001752,2]
[393304006,1762443043064,-151.0,0.0001752,2]
[393304008,1762443043074,-178.432,0.0001752,2]
[393304010,1762443043083,-151.0,0.0001752,2]
[393304012,1762443043093,-151.0,0.0001752,2]
[393304014,1762443043102,-531.93841,0.0001752,2]
[393304016,1762443043113,-151.0,0.0001752,2]
[393304018,1762443043122,-531.93841,0.0001752,2]
[393304020,1762443043131,-151.815308,0.0001752,2]
[393304022,1762443043141,-373.527896,0.0001752,2]
[393304024,1762443043150,-151.815308,0.0001752,2]
[393304026,1762443043160,-373.527896,0.0001752,2]
[393304028,1762443043172,-151.815308,0.0001752,2]
[393304030,1762443043182,-373.527896,0.0001752,2]
[393304032,1762443043193,-151.815308,0.0001752,2]
[393304034,1762443043204,-373.527896,0.0001752,2]
[393304036,1762443043213,-151.0,0.0001752,2]
[393304038,1762443043223,-151.0,0.0001752,2]
[393304040,1762443043233,-151.0,0.0001752,2]
[393304042,1762443043243,-151.0,0.0001752,2]
[393304044,1762443043253,-182.386779,0.0001752,2]
[393304046,1762443043262,-151.0,0.0001752,2]
[393304048,1762443043271,-1008.276394,0.0001752,2]
[393304050,1762443043284,-781.239885,0.0001752,2]
[393304052,1762443043293,-1008.276394,0.0001752,2]
[393304054,1762443043303,-781.239885,0.0001752,2]
[393304056,1762443043312,-1008.276394,0.0001752,2]
[393304058,1762443043323,-781.239885,0.0001752,2]
[393304060,1762443043332,-1008.276394,0.0001752,2]
[393304062,1762443043342,-781.239885,0.0001752,2]
[393304064,1762443043351,-151.0,0.0001752,2]
[393304066,1762443043365,-151.0,0.0001752,2]
[393304068,1762443043375,-151.0,0.0001752,2]
[393304070,1762443043388,-151.0,0.0001752,2]
[393304072,1762443043397,-151.0,0.0001752,2]
[393304074,1762443043409,-151.0,0.0001752,2]
[393304076,1762443043419,-151.0,0.0001752,2]
[393304078,1762443043428,-151.0,0.0001752,2]
[393304080,1762443043438,-161.593414,0.0001752,2]
[393304082,1762443043447,-390.009575,0.0001752,2]
[393304084,1762443043458,-151.0,0.0001752,2]
[393304086,1762443043467,-199.007709,0.0001752,2]
[393304088,1762443043478,-390.009575,0.0001752,2]
[393304090,1762443043487,-390.009575,0.0001752,2]
[393304092,1762443043497,-390.009575,0.0001752,2]
[393304094,1762443043506,-151.0,0.0001752,2]
[393304096,1762443043515,-151.0,0.0001752,2]
[393304098,1762443043525,-151.0,0.0001752,2]
[393304100,1762443043535,-159.180092,0.0001752,2]
[393304101,1762443043545,-159.180092,0.0001752,2]
[393304102,1762443043555,-266.930809,0.0001752,2]
[393304103,1762443043565,-159.180092,0.0001752,2]
[393304104,1762443043575,-152.369643,0.0001752,2]
[393304105,1762443043586,-159.180092,0.0001752,2]
[393304106,1762443043596,-151.0,0.0001752,2]
[393304107,1762443043606,-500.0,0.0001752,2]
[393304108,1762443043616,-500.0,0.0001752,2]
[393304109,1762443043626,-228.44372178,0.0001752,2]
[393304110,1762443043636,-151.0,0.0001752,2]
[393304111,1762443043645,-151.0,0.0001752,2]
[393304112,1762443043655,-151.0,0.0001752,2]
[393304113,1762443043665,-151.0,0.0001752,2]
[393304114,1762443043675,-151.0,0.0001752,2]
[393304115,1762443043684,-151.0,0.0001752,2]
[393304116,1762443043694,-151.0,0.0001752,2]
[393304117,1762443043704,-151.0,0.0001752,2]
[393304118,1762443043714,-151.0,0.0001752,2]
[393304119,1762443043724,-177.973368,0.0001752,2]
[393304120,1762443043990,-177.091548,0.0001752,2]
[393304121,1762443044001,-177.091548,0.0001752,2]
[393304122,1762443044010,-177.091548,0.0001752,2]
[393304123,1762443044020,-151.0,0.0001752,2]
[393304124,1762443044029,-177.091548,0.0001752,2]
[393304125,1762443044038,-151.0,0.0001752,2]
[393304126,1762443044048,-151.0,0.0001752,2]
[393304127,1762443044057,-151.0,0.0001752,2]
[393304128,1762443044067,-151.0,0.0001752,2]
[393304129,1762443044077,-151.0,0.0001752,2]
[393304130,1762443044090,-276.461336,0.0001752,2]
[393304131,1762443044099,-151.0,0.0001752,2]
[393304132,1762443044109,-151.0,0.0001752,2]
[393304133,1762443044119,-151.0,0.0001752,2]
[393304134,1762443044129,-151.0,0.0001752,2]
[393304135,1762443044139,-151.0,0.0001752,2]
[393304136,1762443044151,-151.0,0.0001752,2]
[393304137,1762443044162,-607.620306,0.0001752,2]
[393304138,1762443044171,-607.620306,0.0001752,2]
[393304139,1762443044182,-162.258228,0.0001752,2]
[393304140,1762443044192,-1378.608744,0.0001752,2]
[393304141,1762443044202,-607.620306,0.0001752,2]
[393304142,1762443044212,-1378.608744,0.0001752,2]
[393304143,1762443044223,-159.364215,0.0001752,2]
[393304144,1762443044233,-607.620306,0.0001752,2]
[393304145,1762443044242,-151.0,0.0001752,2]
[393304146,1762443044252,-1378.608744,0.0001752,2]
[393304147,1762443044262,-151.0,0.0001752,2]
[393304148,1762443044272,-1378.608744,0.0001752,2]
[393304149,1762443044285,-584.87,0.00017521,2]
[393304150,1762443044298,-2247.4547361,0.00017521,2]
[393304151,1762443044308,-500.0,0.00017521,2]
[393304152,1762443044318,-329593.4293626,0.00017521,2]
[393304153,1762443044329,-593.28012558,0.00017521,2]
[393304154,1762443044339,-324.02785148,0.00017521,2]
[393304155,1762443044351,-500.0,0.00017521,2]
[393304156,1762443044361,-2663.7482806,0.00017521,2]
[393304157,1762443044371,-5908.9318281,0.00017521,2]
[393304158,1762443044381,-500.0,0.00017521,2]
[393304159,1762443044391,-1921.695711,0.00017521,2]
[393304160,1762443044401,-151.878716,0.00017521,2]
[393304161,1762443044411,-151.0,0.00017521,2]
[393304162,1762443044421,-151.0,0.00017521,2]
[393304163,1762443044431,-151.0,0.00017521,2]
[393304164,1762443044445,-151.0,0.00017521,2]
[393304165,1762443044455,-151.0,0.00017521,2]
[393304166,1762443044465,-151.0,0.00017521,2]
[393304167,1762443044475,-151.0,0.00017521,2]
[393304168,1762443044485,-151.0,0.00017521,2]
[393304169,1762443044499,-151.0,0.00017521,2]
[393304170,1762443044509,-204.581712,0.00017521,2]
[393304171,1762443044519,-151.0,0.00017521,2]
[393304172,1762443044530,-151.0,0.00017521,2]
[393304173,1762443044540,-152105.2399301,0.00017521,2]
[393304174,1762443044550,-331.981782,0.00017521,2]
[393304175,1762443044560,-331.981782,0.00017521,2]
[393304176,1762443044570,-331.981782,0.00017521,2]
[393304177,1762443044580,-331.981782,0.00017521,2]
[393304178,1762443044590,-151.0,0.00017521,2]
[393304179,1762443044600,-151.0,0.00017521,2]